Cogmind - Beta 12 X4 @@@ ROGUE MODE // 2022.10.22 @ 16:36:25 Player: albenzo Result: Destroyed by D-53 Grenadier with Mini Grenade Launcher Performance ------------- Evolutions (0) 0 Regions Visited (4) 800 Robots Destroyed (37) 185 Value Destroyed (810) 810 Prototype IDs (0) 0 Alien Tech Used (0) 0 Bonus (81) 81 TOTAL SCORE: 1876 Bonus ------- Follower Combat Kills 81 Cogmind --------- Core Integrity 0/250 Matter 247/300 Energy 100/100 System Corruption 0% Temperature Cool (0) Movement Treading (480) Ox4 Location -9/Mines Parts ------- > --- POWER (1) -------- (None) > --- PROPULSION (2) --- Light Treads > --- UTILITY (2) ------ Huge Storage Unit > --- WEAPON (2) ------- Assault Rifle > --- INVENTORY (25) --- Light Nuclear Core Makeshift Power Source Improved Heat Sink Improved Heat Sink Medium Storage Unit High-capacity Matter Pod (200) Experimental Sensor Array Makeshift Terrain Scanner Makeshift Terrain Scan Processor Seismic Detector Seismic Detector Seismic Detector Targeting Computer Targeting Computer Hacking Suite Light Assault Rifle Grenade Launcher Grenade Launcher Rocket Launcher Mining Laser Peak State ------------ > --- POWER ------------ Ion Engine > --- PROPULSION ------- Light Treads Light Treads > --- UTILITY ---------- Huge Storage Unit Seismic Detector > --- WEAPON ----------- Assault Rifle Assault Rifle > --- INVENTORY -------- Light Ion Engine Light Nuclear Core Light Treads Light Treads Light Treads Improved Heat Sink Improved Heat Sink Medium Storage Unit High-capacity Matter Pod Experimental Sensor Array Makeshift Terrain Scanner Makeshift Terrain Scan Processor Seismic Detector Seismic Detector Targeting Computer Targeting Computer Light Armor Plating Hacking Suite Assault Rifle Assault Rifle Light Assault Rifle Grenade Launcher Grenade Launcher Grenade Launcher Mining Laser [Rating: 12] Favorites ----------- Power Ion Engine Engine Ion Engine Propulsion Light Treads Treads Light Treads Utility Seismic Detector Device Seismic Detector Storage Huge Storage Unit Protection Light Armor Plating Weapon Assault Rifle Energy Gun Particle Gun Ballistic Gun Assault Rifle Build | -11 -10 -10 -10 -9 ------- Run | Scr Mat Min Exi Min Slots Evolved . | . . . . . Power . | . . . . . Propulsion . | . . . . . Utility . | . . . . . Weapon . | . . . . . Parts Attached 24 | 7 7 3 1 6 Power 4 | 1 2 . 1 . Engine 4 | 1 2 . 1 . Core . | . . . . . Reactor . | . . . . . Propulsion 7 | 2 2 . . 3 Treads 7 | 2 2 . . 3 Leg . | . . . . . Wheel . | . . . . . Hover . | . . . . . Flight . | . . . . . Utility 5 | 2 1 1 . 1 Device 2 | 1 . 1 . . Storage 2 | 1 1 . . . Processor . | . . . . . Hackware . | . . . . . Protection 1 | . . . . 1 Artifact . | . . . . . Weapon 8 | 2 2 2 . 2 Energy Gun 2 | 1 1 . . . Energy Cannon . | . . . . . Ballistic Gun 6 | 1 1 2 . 2 Ballistic Cannon . | . . . . . Launcher . | . . . . . Special Weapon . | . . . . . Impact Weapon . | . . . . . Slashing Weapon . | . . . . . Piercing Weapon . | . . . . . Special Melee Weapon . | . . . . . Unidentified Prototypes . | . . . . . Parts Lost 12 | . 1 2 . 9 Power 2 | . 1 . . 1 Propulsion 4 | . . . . 4 Utility 2 | . . 1 . 1 Weapon 4 | . . 1 . 3 Highest Loss Streak 9 | . 1 1 . 9 To Critical Strikes . | . . . . . Average Slot Usage (%) 99 | . 100 100 100 96 Engine 13 | . 14 14 14 12 Treads 27 | . 28 28 28 26 Device 13 | . 14 14 14 12 Storage 14 | . 14 14 14 14 Energy Gun 6 | . 14 4 . . Ballistic Gun 21 | . 14 23 28 27 Naked Turns . | . . . . . Heaviest Build 91 | 13 91 91 90 90 Greatest Support 40 | 40 40 40 40 40 Greatest Overweight (x) 4 | . 2 2 2 4 Average Overweight (x) 1 | . 1 2 2 2 Largest Inventory Capacity 25 | 8 25 25 25 25 Average Capacity 22 | 7 18 25 25 25 Most Carried 25 | 8 24 25 25 25 Average Carried 20 | 5 12 24 24 24 Final Capacity 25 | 8 25 25 25 25 Final Carried 25 | 8 24 25 25 20 Class Distribution -------------------- 56% | Mutant 43% | Scavenger-Mutant Dominant Class ---------------- Scavenger-Mutant | -10/Materials Scavenger-Mutant | -10/Mines Mutant | -10/Exiles Mutant | -9/Mines Resources | -11 -10 -10 -10 -9 ----------- Run | Scr Mat Min Exi Min Matter Collected 910 | 284 374 208 . 44 Remotely . | . . . . . Salvage Created 1186 | 84 551 492 . 59 Parts 81 | 7 34 33 . 7 Haulers Intercepted 2 | . 2 . . . Recyclers Shooed 3 | . 3 . . . Parts Field Recycled . | . . . . . Retrieved Matter . | . . . . . Parts Self-Destructed . | . . . . . Prevented . | . . . . . Kills | -11 -10 -10 -10 -9 ------- Run | Scr Mat Min Exi Min Combat Hostiles Destroyed 22 | . 9 11 . 2 Guns 22 | . 9 11 . 2 Classes Destroyed 10 | 1 7 1 . 1 Worker 2 | . 1 1 . . Builder 3 | . . 3 . . Tunneler 4 | 4 . . . . Hauler 2 | . 2 . . . Recycler 1 | . 1 . . . Operator 1 | . 1 . . . Watcher 2 | . 2 . . . Swarmer 7 | . 3 3 . 1 Grunt 14 | . 6 8 . . Demolisher 1 | . . . . 1 Best Kill Streak 5 | 2 5 3 . 1 Combat Bots Only 4 | . 4 3 . 1 Max Kills in Single Turn 2 | 1 1 2 . 1 Gunslinging 1 | . . 1 . . Exploded . | . . . . . Melee . | . . . . . Uniques/NPCs Destroyed . | . . . . . Combat | -11 -10 -10 -10 -9 -------- Run | Scr Mat Min Exi Min Damage Taken 1817 | . 332 531 . 954 Core 250 | . 56 75 . 119 Absorbed by Shields . | . . . . . Core Remaining (%) 100 | 100 . . . . Volleys Fired 124 | 14 56 42 . 12 Largest 2 | 2 2 2 . 2 Hottest 85 | 60 85 85 . 40 Shots Fired 244 | 28 111 84 . 21 Gun 244 | 28 111 84 . 21 Cannon . | . . . . . Launcher . | . . . . . Special . | . . . . . Kinetic 152 | 14 56 61 . 21 Thermal 92 | 14 55 23 . . Explosive . | . . . . . Electromagnetic . | . . . . . Robot Hit Streak 14 | 4 14 7 . 4 Robot Miss Streak 5 | 3 5 4 . 1 Penetration Max . | . . . . . Secondary Targets 3 | . . 2 . 1 Max Gunslinging Chain 1 | . . 1 . 1 Shots Hit Robots 150 | 14 72 50 . 14 Core Hits 71 | 8 32 25 . 6 Critical Kills . | . . . . . Critical Parts Destroyed . | . . . . . Critical Strikes 2 | . 1 1 . . Burn 2 | . 1 1 . . Melee Attacks . | . . . . . Impact . | . . . . . Slashing . | . . . . . Piercing . | . . . . . Sneak Attacks . | . . . . . Combat Hostiles . | . . . . . Follow-up Attacks . | . . . . . Damage Inflicted 1817 | 136 793 720 . 168 Guns 1817 | 136 793 720 . 168 Cannons . | . . . . . Explosions . | . . . . . Melee . | . . . . . Ramming . | . . . . . Kinetic 1032 | 60 327 477 . 168 Thermal 785 | 76 466 243 . . Explosive . | . . . . . Electromagnetic . | . . . . . Impact . | . . . . . Slashing . | . . . . . Piercing . | . . . . . Highest Corruption . | . . . . . Average Corruption . | . . . . . Corruption Purged . | . . . . . Corruption Blocked . | . . . . . Overload Shots . | . . . . . Overflow Damage . | . . . . . Projectiles . | . . . . . Explosions . | . . . . . Melee . | . . . . . Knockbacks . | . . . . . Impact . | . . . . . Kinetic . | . . . . . Secondary . | . . . . . Self-Inflicted Damage . | . . . . . Shots . | . . . . . Rammed . | . . . . . Targets Rammed . | . . . . . Kicked . | . . . . . Crushed . | . . . . . Highest Temperature 327 | 40 164 327 . . Average Temperature 84 | 19 52 154 . . Received Heat Transfer 453 | . 159 282 . 12 Effects 1 | . . 1 . . Energy Bleed 1 | . . 1 . . Siege Activations . | . . . . . Robots Corrupted . | . . . . . Combat Hostiles . | . . . . . Parts Fried . | . . . . . Impact Corruptions . | . . . . . Robots Melted . | . . . . . Combat Hostiles . | . . . . . Parts Melted 1 | . 1 . . . Heat Transferred 1996 | 175 1155 666 . . Parts Sabotaged . | . . . . . Parts Stolen . | . . . . . Parts Stripped . | . . . . . Power Chain Reactions . | . . . . . Missiles Intercepted . | . . . . . Alert | -11 -10 -10 -10 -9 ------- Run | Scr Mat Min Exi Min Peak Influence 251 | 20 251 120 . 163 Initial 13 | . 13 . . . Average 49 | 9 60 42 . 76 Maximum Alert Level 1 | . 1 . . . Low Security (%) 97 | 100 94 100 . 100 Level 1 2 | . 5 . . . Level 2 . | . . . . . Level 3 . | . . . . . Level 4 . | . . . . . Level 5 . | . . . . . High Security . | . . . . . Max Security . | . . . . . Squads Dispatched 1 | . 1 . . . Investigation . | . . . . . Extermination . | . . . . . Reinforcement 1 | . 1 . . . Assault . | . . . . . Garrison . | . . . . . Intercept . | . . . . . Searches Triggered . | . . . . . Construction Impeded . | . . . . . Haulers Reinforced . | . . . . . Active Scanning Responses . | . . . . . Cargo Convoy Interrupts . | . . . . . Stealth | -11 -10 -10 -10 -9 --------- Run | Scr Mat Min Exi Min Distress Signals . | . . . . . Communications Jammed . | . . . . . Distress Signals . | . . . . . Times Spotted 50 | . 23 11 . 16 Peak Tracking Total 8 | . 4 3 . 8 Tactical Retreats . | . . . . . Traps | -11 -10 -10 -10 -9 ------- Run | Scr Mat Min Exi Min Traps Triggered . | . . . . . Indirectly . | . . . . . Trap Hack Attempts . | . . . . . Triggered . | . . . . . Disarmed . | . . . . . Reprogrammed . | . . . . . Reused . | . . . . . Traps Extracted . | . . . . . Installed . | . . . . . Triggered . | . . . . . Machines | -11 -10 -10 -10 -9 ---------- Run | Scr Mat Min Exi Min Machines Disabled 3 | . 1 . . 2 Max in Single Turn 1 | . 1 . . . Machines Sabotaged . | . . . . . Overloaded Fab Kills . | . . . . . Hacking | -11 -10 -10 -10 -9 --------- Run | Scr Mat Min Exi Min Machines Accessed 10 | . 9 . 1 . Terminals 7 | . 7 . . . Fabricators . | . . . . . Repair Stations . | . . . . . Recycling Units 2 | . 2 . . . Scanalyzers . | . . . . . Garrison Access . | . . . . . Total Hacks 22 | . 21 . 1 . Successful 12 | . 11 . 1 . Failed 10 | . 10 . . . Catastrophic 3 | . 3 . . . Database Lockouts . | . . . . . Manual 11 | . 11 . . . Terminals 17 | . 17 . . . Fabricators . | . . . . . Repair Stations . | . . . . . Recycling Units 4 | . 4 . . . Scanalyzers . | . . . . . Garrison Access . | . . . . . Terminal Hacks 10 | . 9 . 1 . Record 1 | . . . 1 . Branch Access Points 1 | . 1 . . . Terminal Index 1 | . 1 . . . Locate Traps 2 | . 2 . . . Transport Status 1 | . 1 . . . Recall Investigation 1 | . 1 . . . Recall Reinforcements 1 | . 1 . . . Hauler Manifests 1 | . 1 . . . Registered Components 1 | . 1 . . . Fabricator Hacks . | . . . . . Repair Station Hacks . | . . . . . Recycling Unit Hacks . | . . . . . Scanalyzer . | . . . . . Garrison Access Hacks . | . . . . . Unauthorized Hacks 2 | . 2 . . . Terminals . | . . . . . Fabricators . | . . . . . Repair Stations . | . . . . . Recycling Units 2 | . 2 . . . Reject 1 | . 1 . . . Mask 1 | . 1 . . . Scanalyzers . | . . . . . Garrison Access . | . . . . . Data Cores Recovered . | . . . . . Used . | . . . . . Hacking Detections 8 | . 8 . . . Full Trace Events 1 | . 1 . . . Feedback Events . | . . . . . Feedback Blocked . | . . . . . Robot Schematics Acquired . | . . . . . Robots Built . | . . . . . Authchips . | . . . . . Time . | . . . . . Total Robot Build Rating . | . . . . . Part Schematics Acquired . | . . . . . Parts Built . | . . . . . Authchips . | . . . . . Time . | . . . . . Total Part Build Rating . | . . . . . Parts Repaired . | . . . . . Time . | . . . . . Parts Recycled . | . . . . . Recycled Matter . | . . . . . Retrieved Matter . | . . . . . Retrieved Components . | . . . . . Parts Scanalyzed . | . . . . . Part Schematics Acquired . | . . . . . Parts Damaged . | . . . . . Bothacking | -11 -10 -10 -10 -9 ------------ Run | Scr Mat Min Exi Min Used RIF Installer . | . . . . . Robots Hacked . | . . . . . Non-combat . | . . . . . Combat . | . . . . . Robot Hacks Applied . | . . . . . Relay Couplers Released . | . . . . . Fabnet Peak Effective % . | . . . . . Robots Rewired 2 | . . . 2 . Allies Hacked . | . . . . . Hacks Repelled . | . . . . . Allies | -11 -10 -10 -10 -9 -------- Run | Scr Mat Min Exi Min Total Allies 2 | . . . 2 . Largest Group 2 | . . . 2 2 Highest-Rated Group 29 | . . . 29 29 Highest-Rated Ally 21 | . . . 21 21 Total Orders . | . . . . . Ally Attacks 10 | . . . . 10 Total Damage 197 | . . . . 197 Kills 5 | . . . . 5 Allies Corrupted . | . . . . . Allies Melted . | . . . . . Intel | -11 -10 -10 -10 -9 ------- Run | Scr Mat Min Exi Min Robot Analysis Total . | . . . . . Derelict Logs Recovered 2 | . . 1 . 1 Drone Launches . | . . . . . Drone Recoveries . | . . . . . Exploration | -11 -10 -10 -10 -9 ------------- Run | Scr Mat Min Exi Min Turns Passed 5742 | 226 1736 2072 1454 254 Spaces Moved 1832 | 108 615 596 449 64 Core 5 | 5 . . . . Treads 1827 | 103 615 596 449 64 Legs . | . . . . . Wheels . | . . . . . Hover . | . . . . . Flight . | . . . . . Fastest Speed 50 | 50 160 320 320 320 Average Speed 284 | 154 241 320 320 322 Slowest Speed 480 | 160 320 320 320 480 Overloaded Moves . | . . . . . Propulsion Burnouts . | . . . . . Robots Hopped . | . . . . . Cave-ins Triggered . | . . . . . Exploration Rate (%) 61 | 7 85 100 91 22 Regions Visited 4 Branch Regions 3 Pre-discovered Areas 3 | . . 1 1 1 Known Exits Taken 1 | . 1 . . . Unknown Exits Taken 3 | 1 . 1 1 . Scrap Searched 1 | . . 1 . . Spaces Dug . | . . . . . Terrain Destroyed . | . . . . . Melee . | . . . . . Projectile . | . . . . . AOE . | . . . . . Terrain Rammed . | . . . . . Walls Destroyed . | . . . . . Machines Disabled . | . . . . . Actions | -11 -10 -10 -10 -9 --------- Run | Scr Mat Min Exi Min Total 2148 | 138 766 680 471 93 Wait 90 | 2 50 31 . 7 Move 1828 | 107 614 595 448 64 Hop . | . . . . . Pick Up 47 | 8 25 6 6 2 Fast Attach 7 | 7 . . . . Attach 9 | . 1 2 1 5 Detach . | . . . . . Swap 8 | . 6 1 . 1 Drop 25 | . 14 3 6 2 Fire 124 | 14 56 42 . 12 Melee . | . . . . . Ram . | . . . . . Kick . | . . . . . Crush . | . . . . . Escape Stasis . | . . . . . Rewire 10 | . . . 10 . Trap . | . . . . . Miscellaneous . | . . . . . Route ------- -11/Scrapyard -10/Materials (discovered 3 exits: [*Mat x2] / *Min) -10/Mines (discovered 3 exits: [*Mat x2] / *Exi) -10/Exiles -9/Mines (discovered 1 exit: [*Mat]) History --------- Turn | Location | Event 20 | -11/Scrapyard | Discovered new exit (range 15) 227 | -11/Scrapyard | Entered Materials 304 | -10/Materials | Build established: Mutant 501 | -10/Materials | Identified exit to Mines 526 | -10/Materials | Discovered new exit (range 16) 721 | -10/Materials | Discovered new exit (range 13) 1072 | -10/Materials | Build established: Scavenger-Mutant 1963 | -10/Materials | Entered Mines 2494 | -10/Mines | Deemed a non-threat by the Exiles lab entrance 2494 | -10/Mines | Discovered new exit (range 5) 2630 | -10/Mines | Found a damaged Exp. Sensor Array with a note attached 2681 | -10/Mines | Found Prototype Device 2737 | -10/Mines | Learned location of Mines (-9) 3277 | -10/Mines | Core integrity fell below 50% 3576 | -10/Mines | Build established: Mutant 3738 | -10/Mines | Discovered new exit (range 4) 3908 | -10/Mines | Discovered new exit (range 11) 4035 | -10/Mines | Entered Exiles 4035 | -10/Exiles | Found Exiles lab destroyed 4651 | -10/Exiles | Learned location of Zion (-6) 5444 | -10/Exiles | Discovered new exit (range 11) 5489 | -10/Exiles | Entered Mines 5489 | -9/Mines | Accompanied by 2 allies 5496 | -9/Mines | Received a Rocket Launcher from a helpful Derelict 5692 | -9/Mines | Discovered new exit (range 12) 5706 | -9/Mines | Assembled infested the area 5711 | -9/Mines | Assisted by a Guerilla fighting off Assembled 5743 | -9/Mines | Destroyed by D-53 Grenadier with Mini Grenade Launcher Last Messages --------------- 05724_ The unstable cave ceiling collapses. 05724_ U-05 Engineer builds a Wall. 05725_ R-06 Scavenger destroyed. 05727_ U-05 Engineer destroyed. 05729_ Lgt. Armor Plating destroyed. 05729_ Ion Engine destroyed. 05729_ D-53 Grenadier destroyed. 05729_ Switching to secondary target: D-53 Grenadier. 05731_ Assault Rifle destroyed. 05733_ The unstable cave ceiling collapses. 05735_ Lgt. Treads destroyed. 05736_ The unstable cave ceiling collapses. 05738_ as-67516 sneak attacks. 05739_ as-37717 destroyed. 05741_ as-33657 destroyed. 05741_ as-69610 destroyed. 05741_ as-67516 destroyed. 05741_ as-58437 destroyed. 05742_ as-46261 destroyed. 05743_ The unstable cave ceiling collapses. Map ----- +----------------------------------------------------+ | ?????????????????????????????????????????????????? | | ?????????????????????????????????????????????????? | | ?????????????????????????????????????????????????? | | ?????????????????????????????????????????????????? | | ?????????????????????????????????????????????????? | | ?????????????????????????????????????????????????? | | ?????????????????????????????????????????????????? | | ?????????????????????????????????????????????????? | | ?????????????????????????????????????????????????? | | ?????????????????????????????????????????????????? | | ????###??????????????????????????????????????????? | | ???? ??????????????????????????????????????????? | | ????? #????????????????????????????????????????? | | ?????? ###??????????#??????????????????????????? | | ??????? #??????????# ???????????#?????????????? | | ??????? ??????????# ?????????? ??????????????? | | ???????? ??????????# ????????? ###????????????? | | ????????? #?####????? ?????##? # ???????????? | | ?????????# ### ##????# ????# ## a ??????????? | | ???????### ## ####?# #??# % ??????????? | | ???????# ### ### %% % #??????????? | | ???????# #### =] a% #???????????? | | ???????# #??# # =% = #???????????? | | ???????# #??##### ] d* #????????????? | | ???????# #??????#### < #????????????? | | ???????# #????????# @ #????????????? | | ???????# ##???????# #????????????? | | ??????## ####?#### # #???????????? | | ??????# ### !%* ### #???????????? | | ####### ##! #?????#???????????? | | %[%[== ### # #?????????????????? | | ########### ####?###### ##?????????????????? | | ??????????## ##?????????# ##??????????????????? | | ???????????###??????????# #???????????????????? | | ????????????????????????? #???????????????????? | | ????????????????????????? ##???????????????????? | | ????????????????????????? ###????????????????????? | | ?????????????????????????##??????????????????????? | | ?????????????????????????????????????????????????? | | ?????????????????????????????????????????????????? | | ?????????????????????????????????????????????????? | | ?????????????????????????????????????????????????? | | ?????????????????????????????????????????????????? | | ?????????????????????????????????????????????????? | | ?????????????????????????????????????????????????? | | ?????????????????????????????????????????????????? | | ?????????????????????????????????????????????????? | | ?????????????????????????????????????????????????? | | ?????????????????????????????????????????????????? | | ?????????????????????????????????????????????????? | +----------------------------------------------------+ Best States ------------- Heat Dissipation 25 Energy Generation 10 Energy Capacity 250 Matter Stores 300 Matter Capacity 300 Sight Range 16 Terrain Scan Density 10 Evasion (%) 40 Recoil Reduction 2 Item Schematics ----------------- None Robot Schematics ------------------ None Fabricated ------------ Nothing Alien Tech Used ----------------- None Achievements -------------- None Challenges ------------ None Game ------ Seed AntimatterChainBox Manual? 0 Play Time 00:23:19 Cumulative 94.6 hours Start 2022.10.22 @ 16:08:54 End 2022.10.22 @ 16:36:25 Sessions 1 Manual Loads 0 Difficulty Rogue Special Mode None Game No. 76 Rogue 76 Adventurer 0 Explorer 0 Win Type - Total 5 Types 4/0/1/0/0/0/0/0/0 Lore% 64 Gallery% 63 Achievement% 55 Wizard Run 0 Options --------- ASCII 0 Keyboard 1 Movement Vi Keybinds 0 Fullscreen 2 Font 24/Proggy Map View 76x50 Tactical HUD 1 Map Filters NONE Filters NONE Steam 1 RUN: 9e490458-a349-471c-8edb-1ead5ca0ba03